bitfinex-derivatives/quotes_SOLF0:USTF0_20241211
["timestamp","ask_amount","ask_price","bid_price","bid_amount"]
[1733914946250,2.0,223.95,223.9,5.29922132]
[1733914946546,2.0,223.95,223.91,6.76191602]
[1733914947051,6.76191602,223.99,223.91,6.76191602]
[1733914947252,1.456,224.05,223.95,6.76191602]
[1733914947446,6.76191602,224.02,223.95,6.76191602]
[1733914950845,6.76191602,224.0,223.93,6.76191602]
[1733914951046,2.0,223.99,223.93,6.76191602]
[1733914955052,2.0,223.99,223.9,5.29922132]
[1733914955256,2.0,223.99,223.92,6.76191602]
[1733914958055,6.76191602,223.98,223.9,5.29922132]
[1733914958261,6.76191602,223.98,223.91,6.76191602]
[1733914958458,2.0,223.99,223.93,6.76191602]
[1733914958758,6.76191602,224.02,223.95,6.76191602]
[1733914958959,6.76191602,224.03,223.97,6.76191602]
[1733914959164,2.0,224.02,223.97,6.76191602]
[1733914964357,8.76191602,224.02,223.93,2.7653]
[1733914964565,2.0,224.02,223.96,6.76191602]
[1733914964770,8.76191602,224.02,223.96,6.76191602]
[1733914965963,208.0,224.38,224.0,6.76191602]
[1733914966163,6.76191602,224.11,223.99,2.0]
[1733914966364,6.76191602,224.09,224.01,6.76191602]
[1733914966564,6.76191602,224.07,224.01,6.76191602]
[1733914967069,2.0,224.11,224.01,6.76191602]
[1733914967266,2.0,224.11,223.96,2.0]
[1733914967569,6.76191602,224.08,224.01,6.76191602]
[1733914968162,2.0,224.07,224.0,6.76191602]
[1733914969667,2.0,224.07,224.04,5.37023694]
[1733914970573,6.76191602,224.06,223.96,2.0]
[1733914970771,6.76191602,224.06,223.99,6.76191602]
[1733914972170,2.0,224.07,223.99,6.76191602]
[1733914972366,8.76191602,224.07,223.99,6.76191602]
[1733914973868,8.76191602,224.07,224.03,5.27168083]
[1733914974072,2.0,224.07,224.03,5.27168083]
[1733914974473,6.76191602,224.09,224.03,12.03359685]
[1733914975068,6.76191602,224.09,224.03,5.27168083]
[1733914975277,6.76191602,224.07,224.03,5.27168083]
[1733914980372,2.0,224.1,224.03,5.27168083]
[1733914980678,6.76191602,224.08,224.03,5.27168083]
[1733914981876,2.0,224.1,224.03,5.27168083]
[1733914982079,6.76191602,224.09,224.03,5.27168083]
[1733914987883,2.0,224.1,224.03,5.27168083]
[1733914988179,8.76191602,224.1,224.03,5.27168083]
[1733914988575,2.0,224.1,224.03,5.27168083]
[1733914988776,8.76191602,224.1,224.03,5.27168083]
[1733914989585,1.3222,224.17,224.06,6.76191602]
[1733914989783,2.6925,224.21,224.03,5.27168083]
[1733914989980,6.76191602,224.17,224.11,6.76191602]
[1733914990684,6.76191602,224.17,224.09,6.76191602]
[1733914991385,6.76191602,224.17,224.11,6.76191602]
[1733914991580,2.0,224.2,224.12,3.65264838]
[1733914991881,2.0,224.2,224.13,3.65264838]
[1733914991882,6.76191602,224.18,224.13,3.65264838]
[1733914992077,2.6925,224.21,224.14,3.65264838]
[1733914992285,2.0,224.2,224.15,3.65264838]
[1733914992586,2.0,224.19,224.15,3.65264838]
[1733914992785,2.8027,224.29,224.15,10.4145644]
[1733914992984,2.0,224.26,224.17,6.76191602]
[1733914993186,6.76191602,224.2,224.15,3.65264838]
[1733914993391,6.76191602,224.16,224.15,3.65264838]
[1733914993689,6.76191602,224.16,224.09,6.76191602]
[1733914994580,2.0,224.15,224.09,6.76191602]
[1733914994984,2.0,224.15,224.1,3.65018077]
[1733914995185,2.0,224.15,224.11,3.65018077]
[1733914995378,2.0,224.15,224.12,3.65018077]
[1733914995890,2.0,224.15,224.13,3.65018077]
[1733914996385,2.0,224.15,224.14,3.65018077]
[1733914996991,6.76191602,224.17,224.14,3.65018077]
[1733914997288,2.0,224.16,224.15,3.65018077]
[1733914999388,2.0,224.16,224.09,6.76191602]
[1733914999589,2.0,224.16,224.1,3.64708974]
[1733915000083,2.0,224.16,224.11,3.64754759]
[1733915000885,2.0,224.16,224.12,3.64754759]
[1733915001189,2.0,224.16,224.13,3.64754759]
[1733915001390,2.0,224.16,224.14,3.64754759]
[1733915001585,6.76191602,224.18,224.15,3.64754759]
[1733915001783,2.0,224.17,224.16,3.64754759]
[1733915002283,2.0,224.17,224.11,6.76191602]
[1733915002482,2.0,224.17,224.12,3.64951159]
[1733915002682,2.0,224.17,224.11,6.76191602]
[1733915002888,2.0,224.17,224.13,10.41142709]
[1733915003088,2.0,224.17,224.14,3.64951107]
[1733915003387,2.0,224.17,224.15,3.64951107]
[1733915003593,2.0,224.17,224.05,2.0]
[1733915003594,2.0,224.17,224.12,6.76191602]
[1733915003789,2.0,224.17,224.13,3.65043521]
[1733915004086,2.0,224.17,224.14,3.65043521]
[1733915004391,2.0,224.17,224.15,3.65043521]
[1733915005092,6.76191602,224.16,224.15,3.65043521]
[1733915005283,6.76191602,224.16,224.08,6.76191602]
[1733915005487,6.76191602,224.16,224.09,3.65043687]
[1733915005687,6.76191602,224.16,224.1,3.65043687]
[1733915005982,6.76191602,224.16,224.11,3.65043687]
[1733915006187,6.76191602,224.16,224.12,3.65043687]
[1733915006387,6.76191602,224.16,224.13,3.65043687]
[1733915006583,8.76191602,224.17,224.1,6.76191602]
[1733915006783,8.76191602,224.17,224.11,3.65058489]
[1733915006988,8.76191602,224.17,224.12,3.65058489]
[1733915007188,2.0,224.17,224.13,3.65058489]
[1733915007390,2.0,224.17,224.14,3.65058489]
[1733915007690,6.76191602,224.16,224.1,6.76191602]
[1733915007992,6.76191602,224.16,224.11,3.65158557]
[1733915008191,6.76191602,224.16,224.12,3.65158557]
[1733915008486,6.76191602,224.16,224.13,3.65158557]
[1733915008691,2.0,224.17,224.14,3.65158557]
[1733915008996,2.0,224.17,224.15,3.65158557]
[1733915009190,2.0,224.17,224.1,6.76191602]
[1733915009689,2.0,224.17,224.11,3.65203139]
[1733915009891,2.0,224.17,224.12,3.65203139]
[1733915010190,2.0,224.17,224.13,3.65203139]
[1733915010388,2.0,224.17,224.14,3.65203139]
[1733915010582,2.0,224.17,224.15,3.65203139]
[1733915011195,2.0,224.17,224.16,3.65203139]
[1733915012489,2.0,224.21,224.14,6.76191602]
[1733915012692,8.76191602,224.21,224.16,3.64778508]
[1733915013192,8.76191602,224.21,224.17,3.64778508]
[1733915013396,6.76191602,224.21,224.18,3.64778508]
[1733915013695,8.76191602,224.21,224.14,6.76191602]
[1733915013896,1.3671,224.25,224.15,3.64759244]
[1733915014091,6.3670092,224.27,224.16,10.40950846]
[1733915014092,6.76191602,224.23,224.16,10.40950846]
[1733915014691,6.76191602,224.23,224.17,3.64759244]
[1733915014888,6.76191602,224.23,224.18,3.64759244]
[1733915015089,6.76191602,224.23,224.19,3.64759244]
[1733915015389,6.76191602,224.23,224.16,6.76191602]
[1733915015390,6.76191602,224.23,224.2,3.64759244]
[1733915015591,2.0,224.22,224.21,3.64550739]
[1733915015797,2.0,224.22,224.16,6.76191602]
[1733915015992,2.0,224.22,224.1,2.6995]
[1733915015993,2.0,224.22,224.21,3.64548106]
[1733915016391,2.0,224.22,224.17,3.64548106]
[1733915017391,2.0,224.22,224.21,3.64548106]
[1733915017901,2.0,224.22,224.18,3.64548106]
[1733915018092,2.0,224.22,224.19,3.64548106]
[1733915018502,2.0,224.22,224.2,3.64548106]
[1733915018698,2.0,224.22,224.21,3.64548106]
[1733915018898,1.0,224.27,224.21,3.64548106]
[1733915019195,8.76191602,224.26,224.18,6.76191602]
[1733915019398,8.76191602,224.26,224.19,3.64381011]
[1733915019593,8.76191602,224.26,224.2,3.64381011]
[1733915019800,2.0,224.25,224.21,3.64381011]
[1733915019999,2.0,224.25,224.22,3.64381011]
[1733915020304,6.76191602,224.23,224.15,12.02211478]
[1733915020496,6.76191602,224.23,224.16,3.64189432]
[1733915021295,6.76191602,224.23,224.17,3.64183062]
[1733915021500,6.76191602,224.23,224.18,3.64183062]
[1733915021697,6.76191602,224.23,224.19,3.64183062]
[1733915022099,6.76191602,224.23,224.2,3.64183062]
[1733915022295,6.76191602,224.21,224.15,5.26019876]
[1733915022498,6.76191602,224.21,224.15,12.02211478]
[1733915022791,6.76191602,224.21,224.16,3.64185009]
[1733915022998,6.76191602,224.21,224.17,3.64185009]
[1733915023198,6.76191602,224.21,224.18,3.64185009]
[1733915023397,6.76191602,224.21,224.19,3.64185009]
[1733915023598,6.76191602,224.21,224.2,3.64185009]
[1733915030804,2.0,224.25,224.2,3.64185009]
[1733915031007,6.76191602,224.22,224.21,3.64185009]
[1733915032304,8.76191602,224.22,224.15,12.02211478]
[1733915032511,2.0,224.22,224.17,6.76191602]
[1733915032705,2.0,224.22,224.18,3.64465012]
[1733915033204,2.0,224.22,224.19,3.64465012]
[1733915033508,2.0,224.22,224.2,3.64465012]
[1733915033709,6.76191602,224.21,224.15,5.26019876]
[1733915034010,6.76191602,224.21,224.16,3.64669176]
[1733915034201,6.76191602,224.21,224.17,3.64669176]
[1733915034400,6.76191602,224.21,224.18,3.64669176]
[1733915034605,6.76191602,224.21,224.19,3.64669176]
[1733915034807,6.76191602,224.21,224.2,3.64669176]
[1733915035509,6.76191602,224.21,224.15,5.26019876]
[1733915035701,6.76191602,224.21,224.2,3.64764042]
[1733915035899,6.76191602,224.21,224.15,12.02211478]
[1733915035900,2.0,224.23,224.17,6.76191602]
[1733915036100,2.0,224.23,224.18,3.64708257]
[1733915036101,8.76191602,224.23,224.18,3.64708257]
[1733915036305,8.76191602,224.23,224.19,3.64708257]
[1733915036509,8.76191602,224.23,224.2,3.64708257]
[1733915036714,8.76191602,224.23,224.21,3.64708257]
[1733915037004,8.76191602,224.23,224.22,3.64708257]
[1733915038709,8.76191602,224.23,224.17,6.76191602]
[1733915038909,8.76191602,224.23,224.22,3.64674152]
[1733915039206,8.76191602,224.23,224.17,6.76191602]
[1733915039412,8.76191602,224.23,224.22,3.64620971]
[1733915039611,8.76191602,224.23,224.18,3.64620971]
[1733915039813,8.76191602,224.23,224.19,3.64620971]
[1733915040110,8.76191602,224.23,224.2,3.64620971]
[1733915040313,2.0,224.23,224.21,3.64620971]
[1733915040610,2.0,224.23,224.22,3.64620971]
[1733915041110,2.0,224.23,224.17,6.76191602]
[1733915041306,2.0,224.23,224.22,3.6464809]
[1733915041809,46.42,224.3,224.22,3.6464809]
[1733915042008,6.76191602,224.25,224.23,3.6464809]
[1733915042312,2.0,224.26,224.24,3.6464809]
[1733915042508,8.76191602,224.26,224.19,6.76191602]
[1733915042708,2.0,224.26,224.19,6.76191602]
[1733915042907,8.76191602,224.26,224.19,6.76191602]
[1733915043211,2.0,224.3,224.21,6.76191602]
[1733915043510,6.76191602,224.28,224.22,3.64709739]
[1733915043711,6.76191602,224.28,224.23,3.64709739]
[1733915044013,6.76191602,224.28,224.24,3.64709739]
[1733915044309,8.76191602,224.28,224.21,6.76191602]
[1733915044814,8.76191602,224.28,224.25,3.64486283]
[1733915045003,2.0,224.28,224.26,3.64486283]
[1733915045204,2.0,224.31,224.27,3.64486283]
[1733915045405,2.0,224.31,224.28,3.64486283]
[1733915045610,6.76191602,224.3,224.29,3.64486283]
[1733915047011,4.1428,224.38,224.21,6.76191602]
[1733915047218,6.76191602,224.3,224.23,6.76191602]
[1733915047420,2.0,224.29,224.23,6.76191602]
[1733915047618,2.0,224.29,224.24,3.64610482]
[1733915047818,2.0,224.29,224.25,3.64610482]
[1733915048120,2.0,224.29,224.26,3.64604499]
[1733915048415,2.0,224.29,224.27,3.64604499]
[1733915048608,2.0,224.29,224.28,3.64604499]
[1733915049411,2.0,224.29,224.16,1.3979]
[1733915049412,2.0,224.29,224.23,6.76191602]
[1733915049812,2.0,224.29,224.24,3.64543696]
[1733915050008,2.0,224.29,224.25,3.64543696]
[1733915050221,2.0,224.29,224.26,3.64543696]
[1733915050414,2.0,224.29,224.27,3.64543696]
[1733915050718,2.0,224.29,224.28,3.64543696]
[1733915051024,2.0,224.29,224.21,6.76191602]
[1733915051323,6.76191602,224.28,224.18,2.8421]
[1733915051514,6.76191602,224.28,224.21,6.76191602]
[1733915051719,6.76191602,224.28,224.22,3.64655402]
[1733915052220,6.76191602,224.26,224.22,3.64655402]
[1733915052421,6.76191602,224.26,224.23,3.64655402]
[1733915052620,6.76191602,224.26,224.24,3.64655402]
[1733915053114,6.76191602,224.26,224.25,3.64655402]
[1733915055922,2.0,224.29,224.25,3.64655402]
[1733915056119,6.76191602,224.27,224.25,3.64655402]
[1733915056323,6.76191602,224.27,224.26,3.64655402]
[1733915056824,8.76191602,224.29,224.26,3.64655402]
[1733915057123,8.76191602,224.29,224.27,3.64655402]
[1733915057324,8.76191602,224.29,224.23,6.76191602]
[1733915057325,8.76191602,224.29,224.28,3.64655402]
[1733915057821,8.76191602,224.29,224.28,3.64825571]
[1733915058322,2.0,224.29,224.28,3.64825571]
[1733915059925,8.76191602,224.29,224.28,3.64825571]
[1733915062234,8.76191602,224.29,224.2,6.76191602]
[1733915062436,6.76191602,224.27,224.21,3.64612689]
[1733915062629,6.76191602,224.27,224.22,3.64612689]
[1733915062825,6.76191602,224.27,224.23,3.64612689]
[1733915063025,6.76191602,224.27,224.24,3.64612689]
[1733915063230,2.0,224.29,224.25,3.64612689]
[1733915063426,2.02,224.28,224.26,3.64612689]
[1733915063631,2.02,224.28,224.27,3.64612689]
[1733915064133,2.02,224.28,224.22,6.76191602]
[1733915064432,2.02,224.28,224.23,3.64538903]
[1733915064631,2.02,224.28,224.24,3.64538903]
[1733915064930,2.02,224.28,224.25,3.64538903]
[1733915065139,2.02,224.28,224.26,3.64538903]
[1733915065334,2.02,224.28,224.27,3.64538903]
[1733915067035,2.02,224.28,224.16,1.59459]
[1733915067239,6.76191602,224.23,224.16,1.59459]
[1733915067432,2.02,224.22,224.16,1.59459]
[1733915068338,2.02,224.22,224.17,6.76191602]
[1733915069331,2.02,224.24,224.19,6.76191602]
[1733915069532,2.02,224.26,224.19,6.76191602]
[1733915070438,2.02,224.26,224.19,11.98839899]
[1733915070636,2.02,224.26,224.21,6.76191602]
[1733915071841,2.02,224.26,224.22,1.332]
[1733915076242,8.78191602,224.29,224.22,1.332]
[1733915076443,8.78191602,224.29,224.25,6.76191602]
[1733915076444,2.02,224.29,224.25,6.76191602]
[1733915076644,6.76191602,224.32,224.25,6.76191602]
[1733915076844,2.02,224.31,224.19,5.22648297]
[1733915077042,6.76191602,224.29,224.21,6.76191602]
[1733915078942,6.76191602,224.29,224.23,6.76191602]
[1733915079145,6.76191602,224.29,224.24,3.61680233]
[1733915079345,2.02,224.3,224.25,3.61680233]
[1733915080347,2.02,224.3,224.26,3.61680233]
[1733915080544,2.02,224.3,224.27,3.61680233]
[1733915080747,2.02,224.3,224.28,3.61680233]
[1733915080949,2.02,224.32,224.28,3.61680233]
[1733915081147,6.76191602,224.34,224.28,3.61680233]
[1733915081346,1.4327,224.44,224.29,6.76191602]
[1733915081644,6.76191602,224.35,224.29,6.76191602]
[1733915081851,8.78191602,224.35,224.29,3.61680233]
[1733915082051,2.02,224.35,224.29,10.37871835]
[1733915082250,2.02,224.35,224.3,3.61680233]
[1733915082451,8.78191602,224.35,224.31,3.61680233]
[1733915082648,8.78191602,224.35,224.29,6.76191602]
[1733915082649,8.78191602,224.35,224.32,3.61680233]
[1733915082850,8.78191602,224.35,224.33,3.61680233]
[1733915083551,8.78191602,224.35,224.34,3.61680233]
[1733915086852,8.78191602,224.35,224.26,1.4511]
[1733915086853,8.78191602,224.35,224.25,5.37423148]
[1733915087053,6.76191602,224.28,224.25,5.37423148]
[1733915090662,6.76191602,224.28,224.22,47.10809088]
[1733915091056,2.02,224.3,224.21,6.76191602]
[1733915091358,2.02,224.3,224.17,1.3165]
[1733915091359,6.76191602,224.24,224.18,6.76191602]
[1733915091663,6.76191602,224.24,224.2,1.3233]
[1733915092957,6.76191602,224.24,224.21,5.40558265]
[1733915093762,6.76191602,224.22,224.16,0.19669]
[1733915095260,6.76191602,224.22,224.18,5.2738056]
[1733915098266,2.08,224.25,224.18,5.2738056]
[1733915098567,6.76191602,224.22,224.18,5.2738056]
[1733915098969,2.08,224.25,224.18,5.2738056]
[1733915099166,6.76191602,224.23,224.18,5.2738056]
[1733915100167,6.76191602,224.21,224.18,5.2738056]
[1733915100469,2.08,224.2,224.18,5.2738056]
[1733915102372,2.08,224.2,224.16,0.19669]
[1733915102773,6.76191602,224.17,224.16,0.19669]
[1733915103271,6.76191602,224.17,224.05,1.3282]
[1733915103571,6.76191602,224.07,224.0,2.7244]
[1733915103772,6.76191602,224.03,223.96,6.21909446]
[1733915103966,6.76191602,224.01,223.96,6.21909446]
[1733915104572,6.76191602,224.01,223.95,8.09011602]
[1733915104968,6.76191602,224.01,223.95,1.3282]
[1733915105166,6.76191602,223.99,223.89,2.08]
[1733915105368,6.76191602,223.99,223.92,6.76191602]
[1733915105770,2.08,223.98,223.92,6.76191602]
[1733915106169,2.08,223.98,223.94,5.37417052]
[1733915106373,6.76191602,223.97,223.94,5.37417052]
[1733915107076,2.08,223.98,223.94,12.13608654]
[1733915107369,2.08,224.02,223.96,6.76191602]
[1733915107677,2.08,224.03,223.98,6.76191602]
[1733915109370,2.08,224.03,223.95,14.62707877]
[1733915109568,2.08,224.07,223.95,16.70707877]
[1733915109771,10.52037877,224.05,223.95,4.1067]
[1733915109977,10.52037877,223.99,223.94,5.37417052]
[1733915110277,2.08,223.98,223.94,5.37417052]
[1733915113678,10.52037877,223.96,223.87,1.354]
[1733915115181,10.52037877,223.96,223.81,12.60037877]
[1733915115483,10.52037877,223.96,223.82,4.1478]
[1733915115888,10.52037877,223.96,223.89,5.47703704]
[1733915122991,2.08,223.98,223.89,5.47703704]
[1733915122992,10.52037877,223.95,223.89,5.47703704]
[1733915128198,2.08,223.98,223.89,5.47703704]
[1733915128396,10.52037877,223.95,223.89,5.47703704]
[1733915131397,2.08,223.98,223.89,5.47703704]
[1733915131398,6.74010031,223.92,223.89,5.47703704]
[1733915133001,2.08,223.98,223.89,5.47703704]
[1733915133208,6.74010031,223.93,223.89,5.47703704]
[1733915134511,2.08,223.98,223.89,5.47703704]
[1733915134811,6.74010031,223.94,223.89,5.47703704]
[1733915137917,6.74010031,223.92,223.89,5.47703704]
[1733915139112,2.1,223.95,223.89,5.47703704]
[1733915139309,6.74010031,223.92,223.89,5.47703704]
[1733915140307,6.74010031,223.9,223.89,5.47703704]
[1733915140508,8.84010031,223.9,223.82,4.1478]
[1733915140714,2.1,223.9,223.87,5.32267882]
[1733915140912,6.74010031,223.88,223.87,5.32267882]
[1733915141508,6.74010031,223.88,223.82,1.3811]
[1733915141710,6.74010031,223.83,223.78,6.21909446]
[1733915141909,6.74010031,223.81,223.76,2.8157]
[1733915142112,6.74010031,223.81,223.8,5.41272111]
[1733915144411,1.3495,224.01,223.8,5.41272111]
[1733915144615,6.74010031,223.84,223.8,5.41272111]
[1733915148314,6.74010031,223.82,223.8,5.41272111]
[1733915150221,5.30873424,223.99,223.8,5.41272111]
[1733915150423,6.74010031,223.85,223.8,5.41272111]
[1733915150823,6.74010031,223.84,223.8,5.41272111]
[1733915151217,6.74010031,223.82,223.8,5.41272111]
[1733915152117,6.74010031,223.82,223.76,1.4423]
[1733915152118,2.08,223.81,223.76,1.4423]
[1733915152323,6.74010031,223.8,223.76,1.4423]
[1733915153625,6.74010031,223.8,223.79,5.36580876]
[1733915157630,6.74010031,223.8,223.76,1.4423]
[1733915158726,6.74010031,223.8,223.73,8.17620031]
[1733915160025,2.08,223.81,223.77,5.37111524]
[1733915160222,8.82010031,223.81,223.77,5.37111524]
[1733915161231,6.74010031,223.79,223.73,1.4361]
[1733915161426,2.08,223.81,223.7,1.3272]
[1733915161427,6.74010031,223.75,223.7,1.3272]
[1733915161728,8.82010031,223.75,223.7,1.3272]
[1733915162131,8.82010031,223.75,223.73,5.46174209]
[1733915162624,8.82010031,223.75,223.65,9.54510031]
[1733915162827,6.74010031,223.72,223.65,9.54510031]
[1733915163532,6.74010031,223.74,223.69,6.74010031]
[1733915164830,2.08,223.75,223.69,6.74010031]
[1733915165035,2.08,223.75,223.71,5.30229401]
[1733915165231,6.74010031,223.76,223.71,5.30229401]
[1733915165434,2.08,223.75,223.71,5.30229401]
[1733915171734,2.08,223.76,223.71,5.30229401]
[1733915172241,2.08,223.76,223.71,12.04239432]
[1733915178838,8.82010031,223.76,223.71,5.30229401]
[1733915179237,6.74010031,223.74,223.71,5.30229401]
[1733915181846,2.08,223.76,223.71,5.30229401]
[1733915182044,8.82010031,223.76,223.71,5.30229401]
[1733915182439,1.3429,223.85,223.71,5.30229401]
[1733915182642,6.74010031,223.78,223.71,5.30229401]
[1733915182837,8.80010031,223.78,223.71,5.30229401]
[1733915184547,6.74010031,223.76,223.71,5.30229401]
[1733915185246,6.74010031,223.74,223.71,5.30229401]
[1733915186244,2.06,223.73,223.71,5.30229401]
[1733915189752,2.06,223.77,223.71,5.30229401]
[1733915190346,6.74010031,223.78,223.71,5.30229401]
[1733915190546,2.06,223.79,223.71,5.30229401]
[1733915190751,6.74010031,223.78,223.71,5.30229401]
[1733915197254,2.06,223.79,223.72,6.74010031]
[1733915197458,2.06,223.79,223.74,6.74010031]
[1733915202950,6.74010031,223.78,223.73,2.6951]
[1733915203954,6.74010031,223.78,223.73,1.3214]
[1733915205960,6.74010031,223.76,223.73,1.3214]
[1733915207654,6.74010031,223.78,223.73,1.3214]
[1733915207859,2.06,223.79,223.73,1.3214]
[1733915208056,8.80010031,223.79,223.73,1.3214]
[1733915209458,2.06,223.79,223.73,1.3214]
[1733915209863,8.80010031,223.79,223.73,1.3214]
[1733915211370,6.74010031,223.75,223.73,1.3214]
[1733915211665,6.74010031,223.75,223.71,5.30229401]
[1733915211868,2.06,223.79,223.71,5.30229401]
[1733915211869,6.74010031,223.73,223.71,5.30229401]
[1733915214768,2.02,223.74,223.71,5.30229401]
[1733915215067,6.74010031,223.72,223.71,5.30229401]
[1733915218474,2.02,223.74,223.71,5.30229401]
[1733915218678,6.74010031,223.73,223.71,5.30229401]
[1733915225875,2.02,223.76,223.71,5.30229401]
[1733915226082,6.74010031,223.79,223.72,6.74010031]
[1733915226284,8.76010031,223.79,223.72,6.74010031]
[1733915226481,6.74010031,223.77,223.71,5.30229401]
[1733915229084,6.74010031,223.75,223.71,5.30229401]
[1733915237093,8.76010031,223.75,223.71,5.30229401]
[1733915238295,2.02,223.75,223.71,5.30229401]
[1733915238494,2.02,223.75,223.71,12.04239432]
[1733915238789,2.02,223.79,223.71,12.04239432]
[1733915239095,6.74010031,223.79,223.71,12.04239432]
[1733915239496,6.74010031,223.79,223.71,18.26148878]
[1733915239688,6.74010031,223.79,223.71,12.04239432]
[1733915240087,6.74010031,223.79,223.73,6.74010031]
[1733915241296,2.02,223.8,223.73,6.74010031]
[1733915241691,5.29366483,223.92,223.73,6.74010031]
[1733915241888,6.74010031,223.81,223.73,8.08670031]
[1733915243801,6.74010031,223.81,223.73,1.3466]
[1733915243994,6.74010031,223.79,223.73,1.3466]
[1733915245099,6.74010031,223.79,223.72,8.11680031]
[1733915245498,6.74010031,223.79,223.72,1.3767]
[1733915246198,6.74010031,223.77,223.72,1.3767]
[1733915246698,6.74010031,223.77,223.71,5.30229401]
[1733915248100,6.74010031,223.75,223.71,5.30229401]
[1733915248294,6.74010031,223.73,223.71,5.30229401]
[1733915248805,8.76010031,223.73,223.71,5.30229401]
[1733915249501,2.02,223.73,223.71,5.30229401]
[1733915251299,8.76010031,223.73,223.71,5.30229401]
[1733915254404,2.02,223.73,223.71,5.30229401]
[1733915256198,18.70366483,223.92,223.71,5.30229401]
[1733915256199,2.02,223.76,223.71,5.30229401]
[1733915256400,8.76010031,223.77,223.71,5.30229401]
[1733915257400,2.02,223.77,223.73,6.74010031]
[1733915258008,2.02,223.77,223.71,5.30229401]
[1733915264002,2.02,223.77,223.72,6.74010031]
[1733915264911,2.02,223.77,223.71,5.30229401]
[1733915265611,6.74010031,223.76,223.71,5.30229401]
[1733915269012,6.74010031,223.74,223.71,5.30229401]
[1733915270619,6.74010031,223.72,223.71,5.30229401]
[1733915270818,8.76010031,223.72,223.66,8.15740031]
[1733915271412,8.76010031,223.72,223.71,5.28912188]
[1733915271916,2.02,223.72,223.71,5.28912188]
[1733915276420,2.02,223.72,223.66,8.15740031]
[1733915276617,2.02,223.72,223.62,51.37362241]
[1733915276618,6.74010031,223.67,223.62,51.37362241]
[1733915276823,8.76010031,223.67,223.62,51.37362241]
[1733915278319,6.74010031,223.65,223.62,51.37362241]
[1733915278619,6.74010031,223.65,223.62,56.63698872]
[1733915278826,6.74010031,223.65,223.62,5.26336631]
[1733915282622,6.74010031,223.65,223.57,1.3568]
[1733915282818,6.74010031,223.63,223.57,8.09690031]
[1733915283031,2.02,223.62,223.6,5.36452308]
[1733915283425,6.74010031,223.61,223.56,1.4548]
[1733915283826,6.74010031,223.61,223.54,6.74010031]
[1733915284329,6.74010031,223.61,223.51,1.3459]
[1733915284526,6.74010031,223.59,223.54,6.74010031]
[1733915285230,6.74010031,223.59,223.57,5.43589264]
[1733915285923,6.74010031,223.61,223.57,5.43589264]
[1733915286828,6.74010031,223.59,223.49,2.7761]
[1733915287024,6.74010031,223.57,223.49,2.7761]
[1733915287231,2.02,223.56,223.54,5.3297619]
[1733915287628,6.74010031,223.55,223.49,8.12790031]
[1733915287826,6.74010031,223.55,223.49,1.3878]
[1733915288135,6.74010031,223.55,223.49,6.74010031]
[1733915289431,3.1949,223.67,223.51,11.97604471]
[1733915289627,2.02,223.66,223.53,6.74010031]
[1733915289934,6.74010031,223.59,223.53,6.74010031]
[1733915290134,2.02,223.58,223.53,6.74010031]
[1733915290536,2.02,223.58,223.51,5.2359444]
[1733915290830,2.02,223.58,223.53,6.74010031]
[1733915291838,2.02,223.58,223.52,6.74010031]
[1733915295137,2.02,223.58,223.54,6.74010031]
[1733915295335,2.02,223.64,223.56,6.74010031]
[1733915295532,2.02,223.64,223.59,6.74010031]
[1733915296641,8.76010031,223.64,223.52,4.1029]
[1733915296941,2.02,223.64,223.57,6.74010031]
[1733915297141,8.76010031,223.64,223.57,6.74010031]
[1733915297439,2.02,223.64,223.59,6.74010031]
[1733915297635,2.02,223.64,223.52,4.1029]
[1733915297837,8.76010031,223.64,223.58,6.74010031]
[1733915300438,8.76010031,223.64,223.56,6.74010031]
[1733915300741,6.74010031,223.62,223.54,6.74010031]
[1733915301844,6.74010031,223.6,223.54,6.74010031]
[1733915302441,2.02,223.59,223.54,6.74010031]
[1733915303242,2.02,223.59,223.52,4.1029]
[1733915303243,2.02,223.59,223.52,9.44450031]
[1733915303438,6.74010031,223.58,223.52,9.44450031]
[1733915307949,6.74010031,223.58,223.52,2.7044]
[1733915308147,6.74010031,223.58,223.52,1.3452]
[1733915310548,6.74010031,223.58,223.51,5.2359444]
[1733915312551,6.74010031,223.56,223.51,5.2359444]
[1733915316849,6.74010031,223.54,223.51,5.2359444]
[1733915317048,2.02,223.53,223.51,5.2359444]